bitfinex/quotes_SOLUSD_20250718
["timestamp","ask_amount","ask_price","bid_price","bid_amount"]
[1752834492472,0.65,178.87,178.82,62.99]
[1752834492661,0.65,178.86,178.82,0.65]
[1752834492857,0.65,178.85,178.82,28.78]
[1752834493381,0.65,178.87,178.82,28.78]
[1752834493571,0.65,178.86,178.82,28.78]
[1752834493951,0.65,178.85,178.82,28.78]
[1752834494154,0.65,178.84,178.8,29.43]
[1752834494357,0.65,178.84,178.8,28.78]
[1752834494789,26.0,178.86,178.8,28.78]
[1752834494995,0.65,178.83,178.8,28.78]
[1752834495486,0.65,178.82,178.78,29.43]
[1752834495862,5.59230785,178.82,178.78,29.43]
[1752834496366,5.59230785,178.82,178.76,0.65]
[1752834496680,5.59230785,178.82,178.77,28.78]
[1752834496860,5.59230785,178.82,178.78,0.65]
[1752834497177,5.59230785,178.82,178.79,0.65]
[1752834497378,5.59230785,178.82,178.77,28.78]
[1752834497571,0.65,178.82,178.78,0.65]
[1752834499171,13.97921517,178.84,178.77,28.78]
[1752834499371,14.62921517,178.84,178.78,0.65]
[1752834499671,20.22080541,178.84,178.78,0.65]
[1752834500775,0.65,178.83,178.78,0.65]
[1752834500984,19.57080541,178.84,178.79,0.65]
[1752834501276,0.65,178.83,178.77,29.43]
[1752834501864,5.59221563,178.82,178.77,29.43]
[1752834502065,5.59221563,178.82,178.78,0.65]
[1752834502267,5.59221563,178.82,178.77,28.78]
[1752834502473,5.59221563,178.82,178.79,0.65]
[1752834503269,5.59190292,178.83,178.79,0.65]
[1752834503470,6.24190292,178.83,178.79,0.65]
[1752834506369,5.59155095,178.85,178.8,0.72]
[1752834506686,6.27155095,178.85,178.81,0.72]
[1752834509793,5.59155095,178.85,178.82,0.72]
[1752834510773,5.59104659,178.86,178.83,0.72]
[1752834511087,5.59104659,178.86,178.84,0.72]
[1752834511287,5.59104659,178.86,178.82,0.72]
[1752834511472,0.68,178.85,178.8,0.72]
[1752834511674,0.68,178.85,178.8,28.78]
[1752834511874,0.68,178.85,178.79,28.78]
[1752834511875,5.59159024,178.84,178.79,28.78]
[1752834512074,0.68,178.83,178.79,29.5]
[1752834512268,5.59159024,178.84,178.8,0.72]
[1752834513575,0.68,178.84,178.8,0.72]
[1752834513978,0.68,178.83,178.78,34.28]
[1752834514280,0.68,178.82,178.79,28.76]
[1752834514883,0.68,178.81,178.77,26.0]
[1752834515085,0.68,178.81,178.78,28.76]
[1752834515403,0.68,178.83,178.78,28.76]
[1752834515594,0.68,178.82,178.78,29.48]
[1752834517202,0.68,178.81,178.78,28.76]
[1752834517692,5.59284116,178.8,178.78,28.76]
[1752834517879,6.27284116,178.8,178.78,28.76]
[1752834518080,0.68,178.79,178.78,28.76]
[1752834518283,0.68,178.79,178.75,1e-08]
[1752834518506,0.68,178.79,178.75,29.48000001]
[1752834519288,0.68,178.78,178.75,28.76000001]
[1752834519690,5.59375051,178.78,178.75,29.48000001]
[1752834521190,0.68,178.77,178.75,1e-08]
[1752834521705,6.27409263,178.76,178.75,1e-08]
[1752834521902,5.59409263,178.76,178.75,1e-08]
[1752834524296,13.9821029,178.8,178.75,1e-08]
[1752834524498,0.68,178.79,178.75,1e-08]
[1752834524989,13.9821029,178.8,178.75,1e-08]
[1752834525189,0.68,178.78,178.75,1e-08]
[1752834525592,0.68,178.77,178.75,1e-08]
[1752834525805,5.59409263,178.76,178.75,1e-08]
[1752834526103,6.27409263,178.76,178.75,1e-08]
[1752834528487,5.59409263,178.76,178.75,1e-08]
[1752834529212,5.59388947,178.77,178.75,0.72000001]
[1752834530285,5.59388947,178.77,178.75,1e-08]
[1752834530509,5.59346683,178.78,178.75,1e-08]
[1752834530907,6.27346683,178.78,178.75,1e-08]
[1752834532520,13.9821029,178.8,178.75,1e-08]
[1752834532693,0.68,178.77,178.75,1e-08]
[1752834532889,0.68,178.79,178.75,1e-08]
[1752834533284,0.68,178.78,178.75,1e-08]
[1752834534313,5.59377971,178.77,178.75,1e-08]
[1752834534511,6.29377971,178.77,178.75,1e-08]
[1752834534811,5.59377971,178.77,178.75,1e-08]
[1752834535116,0.7,178.76,178.75,1e-08]
[1752834536398,6.29409263,178.76,178.75,1e-08]
[1752834539027,5.59409263,178.76,178.75,1e-08]
[1752834539397,6.29409263,178.76,178.75,1e-08]
[1752834543025,5.59409263,178.76,178.75,1e-08]
[1752834544423,6.29346683,178.78,178.75,1e-08]
[1752834544598,5.59346683,178.78,178.75,1e-08]
[1752834544804,5.59346683,178.78,178.76,0.69]
[1752834545344,5.59346683,178.78,178.75,1e-08]
[1752834546107,6.29346683,178.78,178.75,1e-08]
[1752834547832,0.7,178.77,178.75,1e-08]
[1752834548223,0.7,178.76,178.75,1e-08]
[1752834548400,5.59409263,178.76,178.75,1e-08]
[1752834549618,5.59409263,178.76,178.75,0.69000001]
[1752834550695,5.59346683,178.78,178.75,0.69000001]
[1752834551116,6.29346683,178.78,178.75,1e-08]
[1752834552225,5.59409263,178.76,178.75,1e-08]
[1752834554326,5.59346683,178.78,178.75,1e-08]
[1752834554505,6.29346683,178.78,178.75,1e-08]
[1752834555216,0.7,178.77,178.75,1e-08]
[1752834556216,5.59409263,178.76,178.75,1e-08]
[1752834557312,5.59409263,178.76,178.75,0.69000001]
[1752834557813,5.59409263,178.76,178.75,1e-08]
[1752834558424,5.59377971,178.77,178.75,1e-08]
[1752834559008,0.7,178.76,178.75,1e-08]
[1752834560438,6.29409263,178.76,178.75,1e-08]
[1752834561440,5.59409263,178.76,178.75,1e-08]
[1752834562734,5.59377971,178.77,178.75,1e-08]
[1752834563423,6.29377971,178.77,178.75,1e-08]
[1752834564340,5.59377971,178.77,178.75,1e-08]
[1752834564722,13.9821029,178.8,178.76,0.7]
[1752834564918,5.59221563,178.82,178.77,0.7]
[1752834565239,5.59221563,178.82,178.78,29.44]
[1752834565424,5.59221563,178.82,178.78,28.74]
[1752834565627,5.59221563,178.82,178.79,0.7]
[1752834566014,5.59221563,178.82,178.79,34.24]
[1752834566215,5.59221563,178.82,178.79,0.7]
[1752834567134,19.57214752,178.83,178.78,28.74]
[1752834567337,0.72,178.82,178.78,28.74]
[1752834567734,0.72,178.81,178.78,28.74]
[1752834567934,0.72,178.82,178.78,28.74]
[1752834568744,19.57214752,178.83,178.78,28.74]
[1752834568929,0.72,178.81,178.78,28.74]
[1752834569532,20.29214752,178.83,178.78,29.44]
[1752834569739,19.57214752,178.83,178.79,0.7]
[1752834569937,20.29214752,178.83,178.79,0.7]
[1752834570436,20.29214752,178.83,178.78,28.74]
[1752834570437,19.57214752,178.83,178.78,28.74]
[1752834570739,0.72,178.82,178.78,29.44]
[1752834571422,0.72,178.81,178.78,28.72]
[1752834571638,5.59284116,178.8,178.78,28.72]
[1752834571841,5.59284116,178.8,178.77,28.72]
[1752834572032,6.31284116,178.8,178.77,28.72]
[1752834572847,5.59284116,178.8,178.77,28.72]
[1752834573923,6.31284116,178.8,178.77,28.72]
[1752834576245,6.31284116,178.8,178.78,33.54]
[1752834576425,6.31284116,178.8,178.77,28.72]
[1752834577441,5.59284116,178.8,178.77,29.42]
[1752834577842,19.57409828,178.81,178.77,29.42]
[1752834578035,20.29409828,178.81,178.77,29.42]
[1752834579421,0.72,178.8,178.77,29.42]
[1752834579641,19.57409828,178.81,178.77,29.42]
[1752834579827,20.29409828,178.81,178.77,29.42]
[1752834580033,0.72,178.8,178.77,28.72]
[1752834580234,19.57409828,178.81,178.77,28.72]
[1752834580235,0.72,178.79,178.77,28.72]
[1752834581044,5.59346683,178.78,178.77,28.72]
[1752834581931,5.59346683,178.78,178.75,2.27980001]
[1752834582134,5.59346683,178.78,178.75,30.97980001]
[1752834582335,5.59315397,178.79,178.76,0.7]
[1752834583247,13.9815699,178.81,178.76,0.7]
[1752834583449,0.72,178.79,178.76,0.7]
[1752834584453,5.59346683,178.78,178.76,0.7]
[1752834586437,5.59346683,178.78,178.76,33.54]
[1752834586747,5.59346683,178.78,178.75,28.70000001]
[1752834587248,0.72,178.77,178.75,1e-08]
[1752834587734,5.59346683,178.78,178.75,1e-08]
[1752834587935,5.59346683,178.78,178.75,0.70000001]
[1752834588454,14.70301396,178.79,178.75,0.70000001]
[1752834588455,13.98301396,178.79,178.75,0.70000001]
[1752834588648,0.72,178.78,178.75,1e-08]
[1752834589028,13.98301396,178.79,178.75,1e-08]
[1752834589234,0.72,178.77,178.75,1e-08]
[1752834589633,0.72,178.76,178.75,1e-08]
[1752834590146,13.98301396,178.79,178.75,1e-08]
[1752834590456,0.72,178.78,178.75,1e-08]
[1752834590641,5.59377971,178.77,178.75,1e-08]
[1752834592351,0.72,178.77,178.75,1e-08]
[1752834593446,6.31409263,178.76,178.75,1e-08]
[1752834593861,6.27409263,178.76,178.75,1e-08]
[1752834597156,6.27409263,178.76,178.74,1e-08]
[1752834597362,0.68,178.75,178.74,1e-08]
[1752834597945,32.27440559,178.75,178.74,1e-08]
[1752834599459,5.59440559,178.75,178.74,1e-08]
[1752834599970,5.59377971,178.77,178.74,0.66000001]
[1752834600390,5.59377971,178.77,178.74,1e-08]
[1752834600556,5.59284116,178.8,178.75,34.2]
[1752834600738,0.68,178.79,178.75,0.66]
[1752834600944,19.57494406,178.8,178.75,0.66]
[1752834601140,20.25494406,178.8,178.76,0.66]
[1752834601444,5.59284116,178.8,178.77,50.98468397]
[1752834601669,5.59284116,178.8,178.78,0.66]
[1752834601880,20.2516922,178.83,178.78,0.66]
[1752834602465,0.68,178.82,178.76,50.98468397]
[1752834602666,0.68,178.82,178.77,0.66]
[1752834602978,0.68,178.82,178.78,0.66]
[1752834603166,0.68,178.81,178.76,34.2]
[1752834605688,0.06,178.86,178.82,16.78468397]
[1752834605874,5.6510644,178.86,178.83,29.34]
[1752834606080,0.06,178.86,178.84,17.44468397]
[1752834606398,0.06,178.86,178.85,17.44468397]
[1752834607863,0.06,178.86,178.84,16.78468397]
[1752834608064,0.06,178.86,178.84,17.44468397]
[1752834608280,0.06,178.86,178.85,0.66]
[1752834612769,0.06,178.86,178.85,29.32]
[1752834612967,0.06,178.86,178.85,46.10468397]
[1752834613170,0.06,178.86,178.85,52.20778397]
[1752834614784,0.06,178.86,178.85,91.33906157]
[1752834616396,0.06,178.86,178.85,57.08778397]
[1752834616575,0.06,178.86,178.85,85.74778397]
[1752834618786,0.06,178.86,178.85,86.30691173]
[1752834619996,0.06,178.86,178.85,91.89818933]
[1752834620593,0.06,178.86,178.85,86.30691173]
[1752834621089,0.06,178.86,178.85,85.74778397]
[1752834621690,0.06,178.86,178.85,86.30691173]
[1752834622002,0.06,178.86,178.85,91.89818933]
[1752834622297,0.06,178.86,178.85,86.30691173]
[1752834622501,0.06,178.86,178.85,91.89818933]
[1752834623303,0.06,178.86,178.85,86.30691173]
[1752834623882,0.06,178.86,178.85,50.32468397]
[1752834624193,0.06,178.86,178.85,45.42468397]
[1752834625603,0.06,178.86,178.85,79.65468397]
[1752834629205,0.06,178.86,178.85,78.96468397]
[1752834629612,0.06,178.86,178.85,62.18]
[1752834629791,0.06,178.86,178.85,79.65468397]
[1752834630208,0.06,178.86,178.85,51.01468397]
[1752834630421,0.06,178.86,178.85,79.65468397]
[1752834630591,0.06,178.86,178.85,80.21381173]
[1752834630991,0.06,178.86,178.85,85.80508933]
[1752834632317,0.06,178.86,178.85,80.21381173]
[1752834632713,0.06,178.86,178.85,50.32468397]
[1752834632912,0.06,178.86,178.85,78.96468397]
[1752834633224,0.06,178.86,178.85,79.65468397]
[1752834633404,0.06,178.86,178.85,80.21381173]
[1752834633604,0.06,178.86,178.85,85.80508933]
[1752834634798,0.06,178.86,178.85,80.21381173]
[1752834635231,0.06,178.86,178.85,78.96468397]
[1752834635462,0.06,178.86,178.85,80.21381173]
[1752834637797,0.06,178.86,178.85,85.80508933]
[1752834645722,0.06,178.86,178.85,232.20508933]
[1752834646028,0.06,178.86,178.85,238.03346157]
[1752834646630,1e-08,178.86,178.85,254.81346157]
[1752834647014,0.06,178.88,178.87,50.32468397]
[1752834647211,0.06,178.9,178.89,50.32468397]
[1752834647418,0.06,178.9,178.89,79.5036867]
[1752834647623,0.06,178.92,178.91,56.52438397]
[1752834647824,0.06,178.92,178.91,232.10332421]
[1752834648123,0.06,178.92,178.91,232.23438397]
[1752834649305,0.06,178.94,178.93,50.32468397]
[1752834649514,0.06,178.94,178.93,79.50356174]
[1752834649714,0.06,178.94,178.93,80.19356174]
[1752834650111,1e-08,178.94,178.93,226.59356174]
[1752834650312,1e-08,178.94,178.93,226.03468397]
[1752834651323,1e-08,178.94,178.93,50.32468397]
[1752834651523,0.70000001,178.94,178.93,33.54]
[1752834651709,0.70000001,178.94,178.93,62.16]
[1752834651912,0.70000001,178.94,178.93,78.94468397]
[1752834652142,1e-08,178.94,178.93,78.94468397]
[1752834653344,0.70000001,178.94,178.93,78.94468397]
[1752834654844,6.28846541,178.94,178.93,78.94468397]
[1752834657149,6.28846541,178.94,178.93,50.32468397]
[1752834657316,6.28846541,178.94,178.93,78.94468397]
[1752834657955,6.28846541,178.94,178.93,62.16]
[1752834658143,6.28846541,178.94,178.93,28.6]
[1752834662333,5.58846541,178.94,178.93,28.6]
[1752834662537,6.29846541,178.94,178.93,28.6]
[1752834663530,1e-08,178.94,178.93,45.38468397]
[1752834663734,5.58846541,178.94,178.93,45.38468397]
[1752834663942,6.29846541,178.94,178.93,45.38468397]
[1752834665641,0.71000001,178.94,178.93,45.38468397]
[1752834666255,1e-08,178.94,178.93,78.92468397]
[1752834666556,1e-08,178.94,178.93,79.58468397]
[1752834668460,1e-08,178.94,178.93,78.92468397]
[1752834670253,1e-08,178.94,178.93,79.58468397]
[1752834671154,1e-08,178.94,178.93,78.92468397]
[1752834674448,0.71000001,178.94,178.93,78.92468397]
[1752834675337,1e-08,178.94,178.93,78.92468397]
[1752834675638,0.71000001,178.94,178.93,78.92468397]
[1752834675841,0.71000001,178.94,178.93,50.32468397]
[1752834676041,0.71000001,178.94,178.93,78.92468397]
[1752834676832,1e-08,178.94,178.93,78.92468397]
[1752834678460,1e-08,178.94,178.93,80.14356174]
[1752834678657,1e-08,178.94,178.93,111.73233947]
[1752834678838,1e-08,178.94,178.93,85.73233947]
[1752834683243,1e-08,178.94,178.93,57.13233947]
[1752834683445,1e-08,178.94,178.93,85.73233947]
[1752834684037,1e-08,178.94,178.93,232.13233947]
[1752834684369,1e-08,178.94,178.93,231.5734617]
[1752834687664,1e-08,178.94,178.93,248.3534617]
[1752834688473,1e-08,178.94,178.93,248.3834617]
[1752834690169,0.06,178.96,178.95,67.10468397]
[1752834690355,0.06,178.96,178.95,242.64349928]
[1752834690563,0.06,178.96,178.95,249.06428397]
[1752834690945,0.06,178.98,178.97,50.32468397]
[1752834691149,0.06,178.98,178.97,85.05096546]
[1752834691351,0.06,178.98,178.97,85.70096546]
[1752834692154,0.06,178.98,178.97,56.47096546]
[1752834692371,0.06,178.98,178.97,85.05096546]
[1752834693071,0.06,178.98,178.97,79.46343683]
[1752834693274,0.75,178.98,178.97,79.46343683]
[1752834693574,0.75,178.98,178.97,105.46343683]
[1752834693775,0.06,178.98,178.97,105.46343683]
[1752834694470,0.75,178.98,178.97,105.46343683]
[1752834694672,0.75,178.98,178.97,76.88343683]
[1752834694877,0.75,178.98,178.97,105.46343683]
[1752834696563,0.75,178.98,178.97,76.88343683]
[1752834696762,0.75,178.98,178.97,104.90468397]
[1752834697182,6.33721644,178.98,178.97,78.90468397]
[1752834697888,6.33721644,178.98,178.97,33.54]
[1752834698055,1.5427,178.97,178.95,33.54]
[1752834698256,0.69,178.96,178.93,0.03]
[1752834698568,5.58815311,178.95,178.93,0.03]
[1752834698965,0.59,178.94,178.93,0.03]
[1752834700774,6.1784654,178.94,178.93,0.03]
[1752834701189,6.1784654,178.94,178.93,28.61]
[1752834702886,6.1784654,178.94,178.93,0.03]
[1752834704284,5.5884654,178.94,178.93,0.03]
[1752834705072,6.1784654,178.94,178.93,0.03]
[1752834707890,5.5884654,178.94,178.93,0.03]
[1752834710080,5.58784085,178.96,178.94,16.78468397]
[1752834710382,5.58784085,178.96,178.95,28.58]
[1752834710586,5.58784085,178.96,178.95,62.12]
[1752834710791,6.17784085,178.96,178.95,28.58]
[1752834710974,6.17784085,178.96,178.93,33.57]
[1752834711292,0.59,178.95,178.93,62.15]
[1752834711588,5.58784085,178.96,178.94,16.78468397]
[1752834711785,5.58784085,178.96,178.94,50.32468397]
[1752834711980,5.58760067,178.97,178.94,50.97468397]
[1752834712395,5.58760067,178.97,178.96,50.32468397]
[1752834712889,5.64722431,178.98,178.96,50.97468397]
[1752834713092,0.06,178.98,178.97,78.90468397]
[1752834713281,0.06,178.98,178.97,79.55468397]
[1752834713588,0.06,178.98,178.97,78.90468397]
[1752834713771,0.65,178.98,178.97,78.90468397]
[1752834713979,0.65,178.98,178.97,28.58]
[1752834714166,0.65,178.98,178.93,26.03]
[1752834714372,2.3094,178.98,178.94,28.58]
[1752834714790,0.59,178.97,178.94,28.58]
[1752834714992,5.58815311,178.95,178.94,28.58]
[1752834716290,1.7194,178.98,178.95,50.32468397]
[1752834716490,0.59,178.98,178.95,50.32468397]
[1752834716683,5.58659217,179.0,178.96,28.58]
[1752834716885,6.17659217,179.0,178.96,62.79]
[1752834717592,5.58659217,179.0,178.96,62.12]
[1752834717774,5.58659217,179.0,178.97,50.99468397]
[1752834717991,5.58659217,179.0,178.98,62.12]
[1752834718199,5.58638584,179.01,178.99,50.32468397]
[1752834718376,5.58638584,179.01,179.0,28.56]
[1752834719383,20.14208608,179.01,178.95,50.32468397]
[1752834719568,20.14208608,179.01,178.96,28.56]
[1752834719569,0.1,179.0,178.96,28.56]
[1752834719968,0.1,179.0,178.95,33.54]
[1752834720199,0.1,179.0,178.95,62.1]
[1752834720495,0.1,179.0,178.95,28.56]
[1752834720894,0.1,179.0,178.93,33.57]
[1752834721193,0.1,179.0,178.93,28.59]
[1752834721389,26.0,178.98,178.93,0.03]
[1752834721598,19.65635022,178.97,178.93,0.03]
[1752834721970,1.6465,178.96,178.93,0.03]
[1752834722605,0.1,178.95,178.93,0.03]
[1752834723175,0.1,178.95,178.93,1e-08]
[1752834723486,5.5884654,178.94,178.93,1e-08]
[1752834723790,32.5411,178.92,178.89,1e-08]
[1752834724100,26.0,178.91,178.89,1e-08]
[1752834724591,0.1,178.9,178.89,1e-08]
[1752834725704,5.68971492,178.9,178.89,1e-08]
[1752834728585,6.17971492,178.9,178.89,1e-08]
[1752834730573,5.58971492,178.9,178.89,1e-08]
[1752834730779,6.17971492,178.9,178.89,1e-08]
[1752834732390,34.75971492,178.9,178.89,1e-08]
[1752834734395,5.58971492,178.9,178.89,1e-08]
[1752834735395,5.58940249,178.91,178.89,1e-08]
[1752834736598,5.58909009,178.92,178.89,1e-08]
[1752834737209,5.58909009,178.92,178.89,0.67000001]
[1752834737422,5.58909009,178.92,178.89,1e-08]
[1752834739023,0.59,178.91,178.89,1e-08]
[1752834739818,5.58909009,178.92,178.89,1e-08]
[1752834739819,0.59,178.9,178.89,1e-08]
[1752834740193,6.17909009,178.92,178.89,1e-08]
[1752834741007,5.58909009,178.92,178.89,1e-08]
[1752834741492,5.58909009,178.92,178.9,0.67]
[1752834741893,56.57906659,178.97,178.91,0.67]
[1752834741894,5.58815311,178.95,178.91,0.67]
[1752834742108,20.14853589,178.95,178.89,0.67000001]
[1752834744005,0.59,178.94,178.89,1e-08]
[1752834744321,19.55853589,178.95,178.89,0.69000001]
[1752834745020,0.59,178.96,178.89,0.69000001]
[1752834745923,0.06,178.97,178.89,0.69000001]
[1752834746517,0.06,178.97,178.9,50.32468397]
[1752834746702,0.06,178.97,178.91,0.69]
[1752834747116,0.06,178.97,178.93,33.54]
[1752834747299,0.06,178.97,178.94,0.69]
[1752834747500,0.06,178.97,178.95,0.69]
[1752834748627,0.06,178.97,178.96,0.69]
[1752834749705,0.06,178.97,178.94,51.01468397]
[1752834750423,0.06,178.97,178.94,79.57468397]
[1752834751623,0.06,178.97,178.94,28.56]
[1752834751821,0.06,178.97,178.94,29.25]
[1752834752017,0.06,178.97,178.94,28.56]
[1752834752611,0.06,178.97,178.94,29.25]
[1752834752932,0.06,178.97,178.95,0.69]
[1752834754510,0.06,178.97,178.96,50.32468397]
[1752834755027,0.06,178.97,178.96,51.01468397]
[1752834758813,0.06,178.97,178.95,33.54]
[1752834759218,0.59,178.96,178.92,33.54]
[1752834759426,0.06,178.97,178.92,62.08]
[1752834759618,0.59,178.96,178.92,62.08]
[1752834760126,0.06,178.97,178.95,33.54]
[1752834760509,0.06,178.97,178.96,0.69]
[1752834761023,0.06,178.97,178.93,34.23]
[1752834761410,0.06,178.97,178.94,0.69]
[1752834762229,0.06,178.97,178.95,0.69]
[1752834763733,0.06,178.97,178.96,0.69]
[1752834763917,0.06,178.97,178.96,79.55468397]
[1752834765131,0.06,178.97,178.96,80.11346805]
[1752834766930,0.06,178.97,178.96,79.55468397]
[1752834770557,0.06,178.97,178.96,80.11346805]
[1752834784053,0.06,178.97,178.96,85.7013089]
[1752834784643,0.06,178.97,178.96,232.1013089]
[1752834784941,0.06,178.97,178.96,231.54252482]
[1752834785643,0.06,178.97,178.96,237.13352482]
[1752834785856,0.06,178.97,178.96,231.54252482]
[1752834786033,0.06,178.97,178.96,248.29252482]
[1752834796889,0.06,178.97,178.96,196.72468397]
[1752834797072,0.06,178.97,178.96,78.84468397]
[1752834797269,0.06,178.97,178.96,76.32468397]
[1752834797478,0.65,178.97,178.94,33.54]
[1752834797781,6.23782262,178.97,178.96,33.54]
[1752834797962,5.64782262,178.97,178.96,33.54]
[1752834798578,6.23782262,178.97,178.96,33.54]
[1752834799263,0.06,178.97,178.96,50.32468397]
[1752834799592,0.06,178.97,178.96,51.56346805]
[1752834802395,0.06,178.97,178.96,57.1513089]
[1752834805308,0.06,178.97,178.96,85.6713089]
[1752834806105,0.06,178.97,178.96,102.4213089]
[1752834806298,0.06,178.97,178.96,85.6713089]
[1752834807004,0.06,178.97,178.96,50.88346805]
[1752834807203,0.06,178.97,178.96,79.40346805]
[1752834807403,0.06,178.97,178.96,85.6913089]
[1752834813710,0.06,178.97,178.96,248.8413089]
[1752834814008,0.06,178.97,178.96,248.28252482]
[1752834814515,0.06,178.97,178.96,219.76252482]
[1752834814690,0.06,178.97,178.96,248.26252482]
[1752834814886,0.06,178.97,178.96,231.51252482]
[1752834821202,0.06,178.97,178.96,85.11252482]
[1752834821401,0.06,178.97,178.96,85.6713089]
[1752834826106,0.06,178.97,178.96,232.0713089]
[1752834826313,0.06,178.97,178.96,231.51252482]
[1752834830511,0.06,178.97,178.96,202.31252482]
[1752834833622,6.23752863,178.97,178.96,62.04]
[1752834834211,6.23752863,178.97,178.96,28.5]
[1752834834903,6.23752863,178.97,178.96,78.82468397]
[1752834835104,0.65,178.97,178.96,78.82468397]
[1752834836319,0.06,178.97,178.96,78.82468397]
[1752834837012,0.06,178.97,178.96,111.6513089]
[1752834837214,0.06,178.97,178.96,111.09252482]
[1752834837602,0.06,178.97,178.96,105.50468397]
[1752834837797,0.06,178.97,178.96,111.09252482]
[1752834838615,0.06,178.97,178.96,110.41252482]
[1752834842326,0.65,178.97,178.96,50.32468397]
[1752834842534,0.65,178.97,178.96,78.82468397]
[1752834842828,0.65,178.97,178.96,50.32468397]
[1752834843025,0.65,178.97,178.96,78.82468397]
[1752834843230,6.23752863,178.97,178.96,78.82468397]
[1752834843533,6.23752863,178.97,178.96,28.5]
[1752834843828,0.65,178.97,178.96,78.82468397]
[1752834844011,0.06,178.97,178.96,78.82468397]
[1752834845336,0.65,178.97,178.96,78.82468397]
[1752834846136,6.23752863,178.97,178.96,78.82468397]
[1752834846809,6.23752863,178.97,178.96,62.04]
[1752834847635,6.23752863,178.97,178.94,33.54]
[1752834847833,6.17810864,178.96,178.94,33.54]
[1752834848035,5.58810864,178.96,178.95,28.5]
[1752834848334,5.64761365,178.97,178.95,28.5]
[1752834848715,6.23761365,178.97,178.95,28.5]
[1752834848909,0.65,178.97,178.95,62.04]
[1752834849742,6.23758521,178.97,178.95,62.04]
[1752834849923,5.64758521,178.97,178.95,62.04]
[1752834850123,0.59,178.96,178.95,78.82468397]
[1752834850625,5.64758521,178.97,178.95,78.82468397]
[1752834850826,6.23758521,178.97,178.95,78.82468397]
[1752834851635,0.65,178.97,178.95,78.82468397]
[1752834851826,6.23755557,178.97,178.95,78.82468397]
[1752834853417,0.59,178.96,178.95,78.82468397]
[1752834853615,0.59,178.96,178.95,62.04]
[1752834856231,6.17784085,178.96,178.95,62.04]
[1752834856833,6.17784085,178.96,178.95,28.5]
[1752834860668,6.17784085,178.96,178.95,62.04]
[1752834862325,6.17784085,178.96,178.89,1e-08]
[1752834862530,0.59,178.95,178.9,62.01]
[1752834863044,19.55744299,178.96,178.9,62.01]
[1752834863045,0.59,178.94,178.9,62.01]
[1752834863549,6.17877773,178.93,178.9,62.01]
[1752834864748,5.58815311,178.95,178.9,62.73]
[1752834864920,0.59,178.94,178.9,62.73]
[1752834865549,6.17864183,178.94,178.9,62.73]
[1752834868247,0.59,178.93,178.9,62.01]
[1752834868549,0.59,178.92,178.9,62.01]
[1752834868745,6.2422,178.96,178.93,16.78468397]
[1752834868746,5.58799218,178.96,178.93,16.78468397]
[1752834868936,5.6476124,178.97,178.94,62.01]
[1752834869323,0.59,178.96,178.9,16.78468397]
[1752834869538,0.59,178.96,178.91,62.01]
[1752834869948,6.2376124,178.97,178.93,33.51]
[1752834870127,0.06,178.97,178.94,62.73]
[1752834870328,0.06,178.97,178.96,50.29468397]
[1752834870736,0.06,178.97,178.96,51.01468397]
[1752834870940,0.06,178.97,178.93,0.72]
[1752834871133,0.59,178.96,178.95,33.51]
[1752834871339,0.06,178.97,178.95,62.01]
[1752834872452,5.64752863,178.97,178.95,62.01]